Cogmind - Beta 16 @@@ ROGUE MODE // 2025.10.26 @ 22:35:24 Player: x'z Result: Destroyed by G-47 Trooper with Particle Gun Performance ------------- Evolutions (2) 1000 Regions Visited (4) 800 Robots Destroyed (20) 100 Value Destroyed (219) 219 Prototype IDs (2) 40 Alien Tech Used (0) 0 Bonus (0) 0 TOTAL SCORE: 2159 Bonus ------- None Cogmind --------- Core Integrity 0/550 Matter 261/300 Energy 73/100 System Corruption 0% Temperature Cool (9) Movement Treading (160) Location -8/Materials Parts ------- > --- POWER (1) -------- (None) > --- PROPULSION (4) --- Improved Treads > --- UTILITY (4) ------ Signal Interpreter Advanced ECM Suite Advanced ECM Suite Propulsion Shielding > --- WEAPON (2) ------- (None) > --- INVENTORY (5) ---- Faulty Improved Flight Unit Improved Melee Analysis Suite Improved Melee Analysis Suite Hacking Suite Peak State ------------ > --- POWER ------------ Light Ion Engine > --- PROPULSION ------- (None) > --- UTILITY ---------- Sensor Array Signal Interpreter Improved Melee Analysis Suite Improved Melee Analysis Suite > --- WEAPON ----------- Precision Shock Rifle Precision Shock Rifle > --- INVENTORY -------- Improved Flight Unit Targeting Computer Targeting Computer Improved Melee Analysis Suite Hacking Suite [Rating: 22] Favorites ----------- Power Light Ion Engine Engine Light Ion Engine Power Core Light Nuclear Core Propulsion Flight Unit Treads Improved Treads Leg VSS Leg Wheel Compact Wheel Flight Unit Flight Unit Utility Signal Interpreter Device Sensor Array Storage Small Storage Unit Processor Signal Interpreter Protection Propulsion Shielding Weapon Assault Rifle Energy Gun Precision Shock Rifle Ballistic Gun Assault Rifle Special Weapon Mining Laser Build | -11 -10 -10 -9 -8 ------- Run | Yrd Mat Min Mat Mat Slots Evolved 4 | . . . 2 2 Power . | . . . . . Propulsion 2 | . . . 1 1 Utility 2 | . . . 1 1 Weapon . | . . . . . Parts Attached 32 | 6 3 3 3 17 Power 6 | 1 2 . . 3 Engine 3 | 1 1 . . 1 Core 3 | . 1 . . 2 Reactor . | . . . . . Propulsion 9 | 2 . 2 1 4 Treads 1 | . . . . 1 Leg 1 | . . . . 1 Wheel 3 | 2 . . . 1 Hover . | . . . . . Flight 4 | . . 2 1 1 Utility 11 | 1 . . 2 8 Device 4 | . . . 1 3 Storage 1 | 1 . . . . Processor 5 | . . . 1 4 Hackware . | . . . . . Protection 1 | . . . . 1 Artifact . | . . . . . Weapon 6 | 2 1 1 . 2 Energy Gun 3 | 1 . . . 2 Energy Cannon . | . . . . . Ballistic Gun 2 | 1 1 . . . Ballistic Cannon . | . . . . . Launcher . | . . . . . Special Weapon 1 | . . 1 . . Impact Weapon . | . . . . . Slashing Weapon . | . . . . . Piercing Weapon . | . . . . . Special Melee Weapon . | . . . . . Unidentified Prototypes 2 | . . . 1 1 Parts Lost 12 | . 3 2 1 6 Power 5 | . 1 1 1 2 Propulsion 4 | . 1 1 . 2 Utility 1 | . . . . 1 Weapon 2 | . 1 . . 1 Highest Loss Streak 3 | . 3 1 1 3 To Critical Strikes . | . . . . . Average Backups 3 | 2 4 5 3 4 Power . | . . . . . Propulsion 1 | 1 2 2 1 1 Utility 1 | . . 1 . 3 Weapon . | . . . . . Tool/Special . | . . . . . Unused Backups 8 | . . 1 . 7 Power . | . . . . . Propulsion 2 | . . 1 . 1 Utility 4 | . . . . 4 Weapon 1 | . . . . 1 Tool/Special 1 | . . . . 1 Average Slot Usage (%) 54 | . 75 73 43 49 Engine 8 | . 7 9 10 3 Core 1 | . 3 1 . 2 Wheel 3 | . 22 4 . . Flight 8 | . . 18 11 . Device 8 | . . . 10 14 Storage 4 | . 14 13 . . Processor 9 | . . . 10 16 Energy Gun 3 | . 6 . . 9 Ballistic Gun 6 | . 20 21 . . Peak Build Rating 22 | 6 7 7 6 22 Average Rating 7 | 5 5 5 4 14 On Entrance 4 | . 6 7 2 6 Avg Prop Armor Cover (%) 20 | . . . 20 20 Naked Turns . | . . . . . Heaviest Build 15 | 12 14 13 6 15 Greatest Support 32 | 32 32 16 4 23 Greatest Overweight (x) 4 | . . 1 1 4 Average Overweight (x) . | . . . . 1 Largest Inventory Capacity 8 | 8 8 8 5 5 Average Capacity 6 | 7 8 7 5 5 Most Carried 6 | 5 5 6 5 5 Average Carried 3 | 2 4 5 2 4 Final Capacity 8 | 8 8 5 5 5 Final Carried 5 | 3 4 5 3 4 Class Distribution -------------------- 100% | Mutant Dominant Class ---------------- Mutant | -10/Materials Mutant | -10/Mines Mutant | -9/Materials Mutant | -8/Materials Resources | -11 -10 -10 -9 -8 ----------- Run | Yrd Mat Min Mat Mat Matter Collected 635 | 311 70 95 . 159 Remotely . | . . . . . Salvage Created 754 | 223 91 191 . 249 Parts 44 | 17 6 13 . 8 Haulers Intercepted 1 | . . . . 1 Recyclers Shooed 3 | . . 1 . 2 Parts Field Recycled . | . . . . . Retrieved Matter . | . . . . . Parts Self-Destructed . | . . . . . Prevented . | . . . . . Parts Restored . | . . . . . Kills | -11 -10 -10 -9 -8 ------- Run | Yrd Mat Min Mat Mat Combat Hostiles Destroyed 7 | . 2 5 . . Guns 7 | . 2 5 . . Classes Destroyed 6 | 3 1 1 . 1 Worker 3 | 2 . . . 1 Tunneler 5 | 5 . . . . Hauler 1 | . . . . 1 Recycler 4 | 1 . 1 . 2 Swarmer 4 | . . 4 . . Grunt 3 | . 2 1 . . Best Kill Streak 5 | 4 2 5 . 1 Combat Bots Only 3 | . 2 3 . . Max Kills in Single Turn 1 | 1 1 1 . 1 Gunslinging . | . . . . . Exploded . | . . . . . Melee . | . . . . . Uniques/NPCs Destroyed . | . . . . . Combat | -11 -10 -10 -9 -8 -------- Run | Yrd Mat Min Mat Mat Hostile Shots Fired 199 | . 33 52 31 83 Missed 70 | . 13 19 12 26 Hits 129 | . 20 33 19 57 Projectile 129 | . 20 33 19 57 AOE 2 | . . 2 . . Critical Strikes 5 | . 1 . 1 3 Damage Taken 1792 | 1 275 397 158 961 Core 911 | . 60 174 125 552 Absorbed by Shields . | . . . . . Core Remaining (%) 58 | 100 . 6 68 . Volleys Fired 82 | 27 19 23 1 12 Largest 2 | 1 2 2 1 2 Hottest 110 | 40 60 100 20 110 Shots Fired 122 | 27 32 42 1 20 Gun 120 | 27 32 40 1 20 Cannon . | . . . . . Launcher . | . . . . . Special 2 | . . 2 . . Kinetic 86 | 18 27 40 1 . Thermal 2 | . . 2 . . Explosive . | . . . . . Electromagnetic 34 | 9 5 . . 20 Robot Hit Streak 7 | 7 6 6 . 7 Robot Miss Streak 4 | 4 2 4 1 2 Penetration Max . | . . . . . Secondary Targets . | . . . . . Shots Hit Robots 79 | 18 22 26 . 13 Core Hits 32 | 9 5 11 . 7 Critical Kills 1 | . 1 . . . Critical Parts Destroyed . | . . . . . Critical Strikes 1 | . 1 . . . Destroy 1 | . 1 . . . Melee Attacks . | . . . . . Impact . | . . . . . Slashing . | . . . . . Piercing . | . . . . . Sneak Attacks . | . . . . . Combat Hostiles . | . . . . . Follow-up Attacks . | . . . . . Damage Inflicted 1119 | 255 263 273 4 324 Guns 1086 | 253 263 270 . 300 Cannons . | . . . . . Explosions . | . . . . . Melee . | . . . . . Ramming 33 | 2 . 3 4 24 Kinetic 677 | 156 251 270 . . Thermal . | . . . . . Explosive . | . . . . . Electromagnetic 409 | 97 12 . . 300 Impact . | . . . . . Slashing . | . . . . . Piercing . | . . . . . Highest Corruption . | . . . . . Average Corruption . | . . . . . Corruption Purged . | . . . . . Corruption Blocked . | . . . . . Overload Shots . | . . . . . Overflow Damage . | . . . . . Projectiles . | . . . . . Explosions . | . . . . . Melee . | . . . . . Knockbacks . | . . . . . Impact . | . . . . . Kinetic . | . . . . . Secondary . | . . . . . Self-Inflicted Damage 15 | 1 . 1 2 11 Shots . | . . . . . Rammed 7 | 1 . 1 1 4 Targets Rammed 7 | 1 . 1 1 4 Kicked . | . . . . . Crushed . | . . . . . Highest Temperature 69 | . 57 56 3 69 Average Temperature 21 | . 20 16 3 25 Received Heat Transfer 753 | . 174 75 27 477 Siege Activations . | . . . . . Martial Activations . | . . . . . Shielding Activations . | . . . . . Robots Disrupted . | . . . . . Combat Hostiles . | . . . . . Robots Corrupted . | . . . . . Combat Hostiles . | . . . . . Parts Fried 1 | 1 . . . . Impact Corruptions . | . . . . . Robots Melted . | . . . . . Combat Hostiles . | . . . . . Parts Melted . | . . . . . Heat Transferred . | . . . . . Parts Sabotaged . | . . . . . Parts Stolen . | . . . . . Parts Stripped . | . . . . . Power Chain Reactions . | . . . . . Alert | -11 -10 -10 -9 -8 ------- Run | Yrd Mat Min Mat Mat Maximum Alert Level . | . . . . . Low Security (%) 100 | 100 100 100 100 100 Level 1 . | . . . . . Level 2 . | . . . . . Level 3 . | . . . . . Level 4 . | . . . . . Level 5 . | . . . . . High Security . | . . . . . Max Security . | . . . . . Peak Influence 110 | 15 30 65 37 110 Initial 11 | . . . . 11 Average 10 | 3 7 22 . 21 Influence Increases 449 | 40 50 127 45 187 Destroy 0b10 Robot/C 140 | . 40 100 . . Destroy 0b10 Robot/NC 65 | 40 . 5 . 20 Destroy Leader 32 | . 10 20 . 2 Destroy Structure 2 | . . 2 . . Lose Combat Pursuer 210 | . . . 45 165 Influence Decreases 354 | 40 50 127 16 121 Entered New Map 18 | . . . . 18 Time Decay 276 | 40 40 107 16 73 Lost Part 60 | . 10 20 . 30 Squads Dispatched 4 | . 1 . 1 2 Investigation 2 | . 1 . . 1 Extermination . | . . . . . Reinforcement 2 | . . . 1 1 Assault . | . . . . . Garrison . | . . . . . Intercept . | . . . . . Searches Triggered . | . . . . . Construction Impeded . | . . . . . Haulers Reinforced . | . . . . . Active Scanning Responses . | . . . . . Cargo Convoy Interrupts . | . . . . . Stealth | -11 -10 -10 -9 -8 --------- Run | Yrd Mat Min Mat Mat Distress Signals 3 | . . 3 . . Communications Jammed . | . . . . . Distress Signals . | . . . . . Times Spotted 64 | . 3 21 14 26 Peak Tracking Total 10 | . 2 10 9 9 Tactical Retreats 8 | . . 1 2 5 ECM-based Alert Blocks 6 | . . . . 6 Traps | -11 -10 -10 -9 -8 ------- Run | Yrd Mat Min Mat Mat Traps Triggered 2 | . 1 . . 1 Indirectly . | . . . . . Trap Hack Attempts . | . . . . . Triggered . | . . . . . Disarmed . | . . . . . Reprogrammed . | . . . . . Reused . | . . . . . Traps Extracted . | . . . . . Installed . | . . . . . Triggered . | . . . . . Machines | -11 -10 -10 -9 -8 ---------- Run | Yrd Mat Min Mat Mat Machines Disabled . | . . . . . Max in Single Turn . | . . . . . Machines Repaired . | . . . . . Machines Dismantled . | . . . . . Machines Sabotaged . | . . . . . Overloaded Fab Kills . | . . . . . Hacking | -11 -10 -10 -9 -8 --------- Run | Yrd Mat Min Mat Mat Machines Accessed . | . . . . . Terminals . | . . . . . Fabricators . | . . . . . Repair Stations . | . . . . . Recycling Units . | . . . . . Scanalyzers . | . . . . . Garrison Access . | . . . . . Total Hacks . | . . . . . Successful . | . . . . . Failed . | . . . . . Catastrophic . | . . . . . Database Lockouts . | . . . . . Manual . | . . . . . Terminals . | . . . . . Fabricators . | . . . . . Repair Stations . | . . . . . Recycling Units . | . . . . . Scanalyzers . | . . . . . Garrison Access . | . . . . . Terminal Hacks . | . . . . . Fabricator Hacks . | . . . . . Repair Station Hacks . | . . . . . Recycling Unit Hacks . | . . . . . Scanalyzer . | . . . . . Garrison Access Hacks . | . . . . . Unauthorized Hacks . | . . . . . Terminals . | . . . . . Fabricators . | . . . . . Repair Stations . | . . . . . Recycling Units . | . . . . . Scanalyzers . | . . . . . Garrison Access . | . . . . . Data Cores Recovered . | . . . . . Used . | . . . . . Hacking Detections . | . . . . . Full Trace Events . | . . . . . Feedback Events . | . . . . . Feedback Blocked . | . . . . . Robot Schematics Acquired . | . . . . . Robots Built . | . . . . . Authchips . | . . . . . Time . | . . . . . Total Robot Build Rating . | . . . . . Part Schematics Acquired . | . . . . . Parts Built . | . . . . . Authchips . | . . . . . Time . | . . . . . Total Part Build Rating . | . . . . . Part Studies Acquired . | . . . . . Parts Repaired . | . . . . . Time . | . . . . . Parts Recycled . | . . . . . Recycled Matter . | . . . . . Retrieved Matter . | . . . . . Retrieved Components . | . . . . . Parts Scanalyzed . | . . . . . Part Schematics Acquired . | . . . . . Parts Damaged . | . . . . . Bothacking | -11 -10 -10 -9 -8 ------------ Run | Yrd Mat Min Mat Mat Used RIF Installer . | . . . . . Robots Hacked . | . . . . . Non-combat . | . . . . . Combat . | . . . . . Robot Hacks Applied . | . . . . . Relay Couplers Released . | . . . . . Fabnet Peak Effective % . | . . . . . Robots Rewired . | . . . . . Allies Hacked . | . . . . . Hacks Repelled . | . . . . . Allies | -11 -10 -10 -9 -8 -------- Run | Yrd Mat Min Mat Mat Total Allies 1 | . . 1 . . Largest Group 1 | . . 1 . . Highest-Rated Group 31 | . . 31 . . Highest-Rated Ally 31 | . . 31 . . Total Orders . | . . . . . Ally Attacks 4 | . . 4 . . Total Damage 20 | . . 20 . . Kills 1 | . . 1 . . Allies Corrupted . | . . . . . Allies Melted . | . . . . . Intel | -11 -10 -10 -9 -8 ------- Run | Yrd Mat Min Mat Mat Active Infowar (turns) 911 | . . . 625 286 Sensors 898 | . . . 625 273 ECM 21 | . . . . 21 Robot Analysis Total . | . . . . . Derelict Logs Recovered . | . . . . . Drone Launches . | . . . . . Drone Recoveries . | . . . . . Exploration | -11 -10 -10 -9 -8 ------------- Run | Yrd Mat Min Mat Mat Turns Passed 1681 | 172 160 303 649 397 Spaces Moved 845 | 109 104 211 156 265 Core 203 | 13 . . 26 164 Treads 1 | . . . . 1 Legs 74 | . . . . 74 Wheels 233 | 96 104 13 . 20 Hover . | . . . . . Flight 334 | . . 198 130 6 Fastest Speed 37 | 50 100 37 40 50 Average Speed 94 | 94 100 95 53 115 Slowest Speed 250 | 100 100 120 120 250 Overloaded Moves . | . . . . . Propulsion Burnouts . | . . . . . Robots Hopped 8 | . . 3 5 . Potential Cave-ins . | . . . . . Cave-ins Triggered . | . . . . . Exploration Rate (%) 23 | 4 27 34 23 27 Regions Visited 4 Branch Regions 1 Pre-discovered Areas . | . . . . . Known Exits Taken . | . . . . . Unknown Exits Taken 4 | 1 1 1 1 . Scrap Searched . | . . . . . Spaces Dug 2 | . . 2 . . Terrain Destroyed 2 | . . 2 . . Melee . | . . . . . Projectile 2 | . . 2 . . AOE . | . . . . . Terrain Rammed . | . . . . . Walls Destroyed . | . . . . . Machines Disabled . | . . . . . Actions | -11 -10 -10 -9 -8 --------- Run | Yrd Mat Min Mat Mat Total 1602 | 151 129 268 714 340 Wait 584 | . 1 18 556 9 Move 826 | 108 103 204 146 265 Hop 7 | . . 3 4 . Pick Up 33 | 9 3 5 1 15 Fast Attach 7 | . . . . 7 Attach 26 | 6 2 3 4 11 Detach 4 | . . . 1 3 Swap 2 | . 1 1 . . Drop 19 | . . 5 . 14 Fire 82 | 27 19 23 1 12 Melee . | . . . . . Ram 7 | 1 . 1 1 4 Kick . | . . . . . Crush . | . . . . . Escape Stasis . | . . . . . Rewire 5 | . . 5 . . Trap . | . . . . . Miscellaneous . | . . . . . Route ------- -11/Scrapyard -10/Materials -10/Mines -9/Materials -8/Materials History --------- Turn | Location | Event 28 | -11/Scrapyard | Discovered new exit (range 14) 173 | -11/Scrapyard | Entered Materials 300 | -10/Materials | Lost 3 parts (1p1n1w) 307 | -10/Materials | Discovered new exit (range 15) 315 | -10/Materials | Build established: Mutant 333 | -10/Materials | Entered Mines 418 | -10/Mines | YI-UF0 nonchalantly dropped a Grenade Launcher on the ground 513 | -10/Mines | Received a Mining Laser from a helpful Derelict 548 | -10/Mines | Assembled infested the area 553 | -10/Mines | Assisted by a Guerilla fighting off Assembled 607 | -10/Mines | Core integrity fell below 50% 623 | -10/Mines | Core integrity fell below 20% 632 | -10/Mines | Discovered new exit (range 10) 636 | -10/Mines | Entered Materials 636 | -9/Materials | Evolved 2 slots: Propulsion x1, Utility x1 1278 | -9/Materials | Discovered new exit (range 14) 1285 | -9/Materials | Entered another Materials area 1285 | -8/Materials | Evolved 2 slots: Propulsion x1, Utility x1 1592 | -8/Materials | Lost 3 parts (1p1n1u) 1638 | -8/Materials | Core integrity fell below 50% 1652 | -8/Materials | Core integrity fell below 20% 1677 | -8/Materials | Lost 3 parts (1p1n1w) 1682 | -8/Materials | Destroyed by G-47 Trooper with Particle Gun Last Messages --------------- Lgt. Nuclear Core destroyed. VSS Leg destroyed. Sensor Array destroyed. Critical hit (Burn: +37). Acquired 22 matter. Slammed into K-01 Serf. Acquired Cesium-ion Thruster. Cesium-ion Thruster destroyed. Acquired Lgt. Nuclear Core. Prc. Shock Rifle destroyed. Slammed into G-50 Soldier. Slammed into G-47 Trooper. Critical hit (Burn: +37). Lgt. Nuclear Core destroyed. Acquired Arm. Wheel. Critical hit (Burn: +37). K-01 Serf cleans the Integration Channel. Acquired Imp. Treads. Dropped Arm. Wheel. Acquired Propulsion Shielding. Map ----- +----------------------------------------------------+ | | | | | | | | | | | | | | | | | | | | | | | | | | | | | | | ???###########?????????????????? | | ???#[ ????????????????? | | ???? """ ""?????????????????? | | ?????? """ ""?????????????????? | | ??????? """ "??????????????????? | | ???????? ???????????????????? | | ##########"#######?????????????? | | # # #???########??? | | # # #####+##### * #??? | | #] + # # # #??? | | # / # # """ # # =@[ #??? | | # # # """ + g/ =![ #??? | | ######### # """ # # ![[ #??? | | ######### # # # #??? | | # #* # ###+####??? | | """ """ # ####+### #?? #?????? | | """ """ # #### ### ### ##????? | | """ """ + #????? | | # / [ ! #????? | | ] ! # #????? | | # """ """ #????? | | # """"""""" #????? | | ######### """"" #????? | | ???????## #????? | | ???##### ### #????? | | #?# #????? | | #?# #????? | | ! ! #?# #????? | | #########+#########+##### #????? | | ??????????????# # #????? | | ??????????????# # #????? | | ??????????????# ![[ # #????? | | ??????????????# ![[ / #????? | | ??????????????# ![ # #????? | | ??????????????# # #????? | +----------------------------------------------------+ Best States ------------- Heat Dissipation 31 Energy Generation 14 Energy Capacity 250 Matter Stores 300 Matter Capacity 300 Sight Range 16 Robot Scan Range 14 Terrain Scan Density 10 ECM Strength 4 Additional Mass Support 6 Evasion (%) 62 Targeting Accuracy 10 Melee Accuracy 12 Recoil Reduction 1 Item Schematics ----------------- None Robot Schematics ------------------ None Fabricated ------------ Nothing Repaired ---------- Nothing Studied --------- None Alien Tech Used ----------------- None Achievements -------------- I Survived The Infestation Challenges ------------ None Game ------ Seed BlanketWardroneExtrapolator Manual? 0 Play Time 00:16:28 Cumulative 7.8 hours Start 2025.10.26 @ 22:20:47 End 2025.10.26 @ 22:35:24 Sessions 1 Manual Loads 0 Difficulty Rogue Special Mode None Game No. 20 Rogue 20 Adventurer 0 Explorer 0 Win Type - Total 0 Types 0/0/0/0/0/0/0/0/0/0 Lore% 8 Gallery% 14 Achievement% 14 Wizard Run 0 Options --------- Layout 1 ASCII 0 Keyboard 0 Movement Numpad Keybinds 0 Fullscreen 1 Font 32/SmallcapsGlow Map View 50x35 Zoom Use 0% Tactical HUD 0 Map Filters NONE Filters NONE Steam 1 RUN: 3e4383d3-a62d-4d04-9786-dc0a4cc64e8e